bitfinex-derivatives/quotes_ETHF0:USTF0_20250803
["timestamp","ask_amount","ask_price","bid_price","bid_amount"]
[1754233586704,0.3807,3461.1,3460.6,41.599]
[1754233586892,0.5332,3461.5,3461.1,0.57786]
[1754233587092,0.343,3461.4,3460.9,0.4445]
[1754233587291,4.31877,3461.7,3461.0,1.68117]
[1754233587498,4.31877,3461.7,3461.4,1.5478]
[1754233587499,0.8762,3461.6,3461.4,1.5478]
[1754233587696,3.2078,3461.7,3461.5,20.429]
[1754233588000,3.2078,3461.7,3461.6,1.5478]
[1754233588803,0.8762,3462.0,3461.6,21.9738]
[1754233588993,0.5332,3461.8,3461.7,1.5478]
[1754233589398,0.8762,3461.8,3461.7,1.5478]
[1754233589601,1.2569,3462.1,3461.6,21.00376]
[1754233589801,0.8762,3462.0,3461.8,0.9823]
[1754233590002,0.8762,3462.0,3461.9,1.5478]
[1754233590198,5.4445887,3462.1,3461.9,20.435]
[1754233590399,0.7237,3462.0,3461.4,0.4445]
[1754233590598,1.2569,3461.4,3460.8,0.5378]
[1754233590806,0.8762,3460.9,3459.8,3.2078]
[1754233591099,1.2569,3460.5,3459.9,21.9968]
[1754233591307,1.83486,3460.5,3459.9,1.5478]
[1754233591497,0.57796,3460.5,3459.8,3.78587]
[1754233591799,4.084,3460.6,3460.1,0.57802]
[1754233592095,3.741,3460.6,3460.3,0.57799]
[1754233592300,3.2078,3460.6,3460.4,1.5478]
[1754233592492,3.2078,3460.6,3460.5,1.5478]
[1754233592698,1.49181,3460.9,3460.6,1.5478]
[1754233592699,0.5332,3460.9,3460.6,1.5478]
[1754233592898,0.343,3461.0,3460.8,1.5478]
[1754233593098,0.5332,3460.5,3460.4,0.5378]
[1754233593306,0.8762,3460.5,3460.4,22.0328]
[1754233593504,0.57795,3460.6,3459.9,3.78585]
[1754233593699,3.5508,3460.7,3460.0,21.65453]
[1754233593907,0.57797,3460.5,3460.1,0.5655]
[1754233594204,0.57797,3460.5,3460.4,0.9823]
[1754233594205,1.45417,3460.5,3460.4,0.9823]
[1754233594404,0.8762,3460.5,3460.4,0.9823]
[1754233594607,1.2569,3460.5,3460.4,21.0438]
[1754233594808,1.2569,3460.5,3460.4,0.9823]
[1754233595104,1.2569,3460.4,3460.3,20.501]
[1754233596196,1.2569,3460.4,3460.3,21.0388]
[1754233596411,1.2569,3460.4,3460.3,21.0578]
[1754233597105,1.2569,3460.4,3460.3,22.0678]
[1754233597305,0.8762,3460.6,3460.4,1.5478]
[1754233597502,4.16643,3460.7,3460.5,20.507]
[1754233597503,3.2078,3460.7,3460.5,20.507]
[1754233597698,3.2078,3460.7,3460.6,1.5478]
[1754233598107,0.5779,3460.9,3460.6,1.5478]
[1754233598306,5.04651,3460.8,3460.7,0.9823]
[1754233598607,4.4686,3460.8,3460.7,1.5478]
[1754233598799,4.0823,3460.8,3460.7,22.0498]
[1754233598999,4.0823,3460.8,3460.7,1.5478]
[1754233599199,4.0823,3460.8,3460.7,22.0458]
[1754233599399,4.4686,3460.8,3460.7,22.0458]
[1754233599594,0.5332,3460.8,3460.7,22.0458]
[1754233599799,0.8745,3461.1,3460.8,1.5478]
[1754233600106,0.8745,3461.1,3460.7,20.498]
[1754233600107,4.31883,3461.3,3460.9,0.5378]
[1754233600300,4.66013,3461.3,3460.7,21.07592]
[1754233600499,4.12693,3461.3,3461.1,1.01]
[1754233600707,4.66013,3461.3,3461.2,1.5478]
[1754233600912,5.47451809,3461.3,3461.2,22.0408]
[1754233601200,4.02218809,3461.3,3461.2,22.0408]
[1754233601402,3.2078,3461.7,3461.3,1.5478]
[1754233601703,4.626,3461.7,3461.6,0.5378]
[1754233601904,4.626,3461.7,3461.6,1.5478]
[1754233602104,5.44136342,3461.7,3461.6,1.5478]
[1754233602305,5.44136342,3461.7,3461.6,20.9315]
[1754233602501,5.44136342,3461.7,3461.6,22.0348]
[1754233602907,3.2078,3461.7,3461.6,22.0348]
[1754233604412,5.21826,3461.7,3461.6,20.48]
[1754233604908,0.57776,3461.7,3461.6,22.0513]
[1754233605307,0.57774,3461.8,3461.7,1.5713]
[1754233605511,0.57771,3462.0,3461.7,1.5713]
[1754233605809,0.81604665,3461.9,3461.8,1.5713]
[1754233606010,2.24874665,3461.9,3461.8,1.5713]
[1754233606706,1.0898,3461.9,3461.8,1.5713]
[1754233608713,1.4378,3461.9,3461.8,2.6174]
[1754233609011,1.8041,3461.9,3461.8,23.0704]
[1754233610109,1.66756,3461.7,3461.4,3.2078]
[1754233610309,1.4327,3461.6,3461.5,21.1397]
[1754233610518,2.4683,3461.6,3461.5,23.0704]
[1754233610917,2.4683,3461.6,3461.5,2.6174]
[1754233611109,2.4683,3461.6,3461.5,23.0574]
[1754233611309,2.4683,3461.6,3461.5,23.0694]
[1754233611812,1.6024,3462.0,3461.9,2.6174]
[1754233612014,3.28494662,3462.0,3461.9,23.0674]
[1754233612211,2.4683,3462.0,3461.9,23.0674]
[1754233612616,2.4683,3462.0,3461.9,20.45]
[1754233612819,3.28497206,3462.0,3461.9,20.45]
[1754233613220,3.04602,3461.9,3461.8,1.5351]
[1754233613514,3.04602,3461.9,3461.8,22.5249]
[1754233613914,3.04602,3461.9,3461.8,23.0564]
[1754233614318,3.04602,3461.9,3461.8,2.6174]
[1754233614625,3.04602,3461.9,3461.8,23.0454]
[1754233616016,0.7143,3461.7,3461.6,2.6174]
[1754233616212,1.0356,3461.7,3461.6,23.0454]
[1754233616515,1.0356,3461.7,3461.4,3.2078]
[1754233616516,2.4683,3461.5,3461.4,1.2182]
[1754233616721,1.0356,3461.5,3460.9,3.2078]
[1754233616908,1.5586,3461.3,3461.2,2.64443]
[1754233617113,3.78556,3461.7,3461.2,2.6174]
[1754233617314,4.2434,3461.7,3461.6,1.0461]
[1754233617518,4.2434,3461.7,3461.6,23.0364]
[1754233617819,5.6761,3461.7,3461.6,23.0364]
[1754233618021,5.6761,3461.7,3461.6,2.6174]
[1754233618322,1.0356,3461.4,3461.3,2.6174]
[1754233618522,2.4683,3461.4,3461.3,2.6174]
[1754233618815,2.4683,3461.4,3461.3,23.0274]
[1754233619122,2.4683,3461.4,3461.3,23.0264]
[1754233619621,9.2191887,3461.7,3460.5,3.2078]
[1754233619920,2.4683,3460.9,3460.8,1.1757]
[1754233620126,2.4683,3460.9,3460.8,1.5351]
[1754233620319,2.4683,3460.9,3460.8,21.9491]
[1754233620621,2.4683,3460.9,3460.8,23.0314]
[1754233621818,2.4683,3460.9,3460.8,2.6174]
[1754233622023,5.0119,3461.3,3461.2,2.6174]
[1754233622419,3.2078,3461.3,3461.2,23.0194]
[1754233622730,1.8041,3461.7,3461.6,2.6174]
[1754233623027,5.6761,3461.7,3461.6,2.0859]
[1754233623322,2.4683,3461.4,3461.3,2.1284]
[1754233623521,2.4683,3461.4,3461.3,23.0234]
[1754233623714,2.147,3461.4,3461.3,0.9102]
[1754233623917,0.57799,3460.3,3459.9,17.145]
[1754233624120,0.57806,3459.9,3459.8,3.2078]
[1754233624314,0.57816,3459.3,3459.0,20.503]
[1754233624512,0.57816,3459.3,3459.2,0.5315]
[1754233624914,0.5731,3459.3,3459.2,0.5315]
[1754233625613,0.5731,3459.3,3459.1,20.498]
[1754233625813,0.5731,3459.3,3459.2,1.0205]
[1754233626014,0.523,3458.5,3458.3,3.2078]
[1754233626217,1.0961,3458.5,3458.4,1.0315]
[1754233627122,1.0961,3458.5,3458.4,0.5]
[1754233627328,1.0961,3458.5,3458.4,1.5205]
[1754233627329,0.5668,3458.5,3458.4,1.5205]
[1754233627625,0.5668,3458.7,3458.5,0.9538]
[1754233627825,0.5668,3458.7,3458.5,1.4428]
[1754233628026,0.5668,3458.7,3458.6,1.0205]
[1754233628226,0.5731,3458.5,3458.4,0.5]
[1754233628526,0.5668,3458.5,3458.4,1.5205]
[1754233628930,0.5668,3458.5,3458.4,1.9428]
[1754233629326,0.5668,3458.5,3458.4,22.6598]
[1754233629624,0.5668,3458.5,3458.4,22.6638]
[1754233629823,0.5668,3458.5,3458.4,22.2415]
[1754233630225,0.5731,3458.5,3458.4,0.5]
[1754233630421,1.10759,3458.5,3458.4,0.5]
[1754233630628,1.67439,3458.5,3458.4,0.5]
[1754233631025,1.0961,3458.5,3458.4,0.5]
[1754233632025,1.0961,3458.5,3458.4,0.4937]
[1754233632829,1.0898,3458.3,3457.8,3.2078]
[1754233633133,0.523,3458.3,3458.0,1.0205]
[1754233633434,0.523,3458.2,3457.9,1.0205]
[1754233633729,0.523,3458.2,3457.8,3.7586]
[1754233633730,0.001,3458.2,3458.0,0.5617]
[1754233634032,0.5712,3458.2,3458.1,1.0006]
[1754233634726,0.5712,3458.1,3457.9,1.0006]
[1754233634931,0.5712,3458.1,3458.0,1.0006]
[1754233635229,0.57831,3458.4,3458.0,1.0006]
[1754233635430,0.57829,3458.5,3458.1,0.5263]
[1754233635627,3.2078,3458.8,3457.9,1.036]
[1754233635835,3.2078,3458.7,3458.4,1.036]
[1754233636027,0.5702,3458.7,3458.3,0.57831]
[1754233636226,0.5702,3458.7,3458.6,1.5623]
[1754233636534,3.2078,3459.1,3458.8,1.5623]
[1754233636730,3.778,3459.1,3459.0,1.5623]
[1754233637328,3.2078,3459.1,3459.0,1.5623]
[1754233638227,0.5702,3459.5,3458.8,1.5623]
[1754233638228,3.778,3459.5,3458.8,1.5623]
[1754233638630,0.57814,3459.4,3458.9,1.5623]
[1754233638829,3.2078,3459.5,3459.0,1.0006]
[1754233639027,3.2078,3459.5,3458.8,0.57823]
[1754233639230,0.5702,3459.3,3459.2,1.5623]
[1754233639534,0.5712,3459.3,3459.2,1.5623]
[1754233640030,3.2078,3459.5,3459.3,1.5623]
[1754233640334,0.5702,3459.9,3459.7,0.57809]
[1754233640538,0.5702,3459.9,3459.8,1.5623]
[1754233640831,3.2078,3460.0,3459.9,1.5623]
[1754233641335,0.5702,3460.3,3460.0,0.57804]
[1754233641523,5.9966887,3460.7,3460.2,2.14031]
[1754233641727,0.5702,3460.6,3460.5,0.5263]
[1754233642027,3.2078,3460.8,3460.5,2.14025]
[1754233642222,3.779,3460.8,3460.7,0.5263]
[1754233642420,3.778,3461.2,3460.5,1.5623]
[1754233642625,3.2078,3461.2,3460.9,0.57788]
[1754233642825,3.778,3461.2,3461.1,1.5623]
[1754233643035,0.5702,3461.2,3461.1,1.5623]
[1754233644125,5.4445887,3461.5,3461.2,0.57784]
[1754233644438,3.778,3461.7,3461.6,1.5623]
[1754233645334,3.2078,3461.7,3461.6,1.5623]
[1754233645532,3.778,3461.7,3461.6,1.5623]
[1754233647524,3.2078,3461.7,3461.6,1.5623]
[1754233647737,0.57786,3461.1,3461.0,1.5623]
[1754233647935,0.57793,3460.7,3460.4,3.7341]
[1754233648131,0.57789,3460.9,3460.5,0.5263]
[1754233648332,0.5712,3460.8,3460.6,1.0006]
[1754233648532,0.5702,3460.7,3460.6,0.4743]
[1754233649034,0.5702,3460.7,3460.6,1.5623]
[1754233649631,4.35587,3461.1,3460.8,1.5623]
[1754233649936,0.5712,3461.0,3460.9,0.4743]
[1754233650142,0.5712,3461.0,3460.6,0.4743]
[1754233650340,0.57791,3460.8,3460.7,0.4743]
[1754233650640,1.14911,3460.8,3460.7,0.4743]
[1754233651043,1.14911,3460.8,3460.7,1.0006]
[1754233651241,1.14916,3460.5,3460.4,1.0006]
[1754233651739,0.5702,3460.5,3460.4,1.0006]
[1754233651936,0.5702,3460.5,3460.4,1.5623]
[1754233653538,0.57793,3460.7,3460.2,1.5623]
[1754233653740,3.778,3461.0,3460.5,1.088]
[1754233653934,4.35588,3461.0,3460.5,0.57795]
[1754233654136,3.2078,3461.0,3460.7,1.05222]
[1754233654443,0.5702,3461.2,3461.0,1.5623]
[1754233654635,0.5702,3461.2,3461.1,1.5623]
[1754233655035,3.2078,3461.4,3461.2,1.088]
[1754233655240,3.2078,3461.4,3461.2,0.5263]
[1754233655432,3.2078,3461.4,3461.3,1.5623]
[1754233656138,3.778,3461.4,3461.3,1.5623]
[1754233656338,3.779,3461.4,3461.3,1.5623]
[1754233656544,3.779,3461.4,3461.3,1.0006]
[1754233656842,1.70012,3461.3,3461.1,0.5263]
[1754233657044,0.5712,3460.9,3460.8,0.4743]
[1754233657642,0.5712,3460.9,3460.8,1.5623]
[1754233657839,0.5702,3460.9,3460.8,1.5623]
[1754233658238,0.5779,3460.9,3460.4,0.4743]
[1754233658445,1.14808,3461.0,3460.8,1.036]
[1754233658741,0.5702,3460.9,3460.7,1.5623]
[1754233658946,0.5702,3460.9,3460.8,1.5623]
[1754233659145,3.2078,3461.4,3460.8,1.036]
[1754233659348,3.2078,3461.4,3461.3,1.036]
[1754233659541,3.2078,3461.4,3461.3,1.5623]
[1754233660546,1.14901,3461.4,3461.3,0.5617]
[1754233660743,1.14801,3461.4,3461.3,0.5617]
[1754233661151,1.14901,3461.4,3461.3,1.5623]
[1754233661348,1.14901,3461.4,3461.3,1.0006]
[1754233661545,0.5712,3461.4,3461.3,1.5623]
[1754233661746,0.5702,3461.4,3461.3,1.5623]
[1754233662445,0.5702,3461.6,3461.4,1.5623]
[1754233662658,0.5702,3461.6,3461.5,1.5623]
[1754233666256,1.3087,3461.6,3461.5,2.5824]
[1754233667155,0.57776,3461.7,3461.5,2.5824]
[1754233667353,3.2078,3461.9,3461.8,2.5141]
[1754233669555,3.569,3461.9,3461.8,2.5141]
[1754233669752,4.0914,3461.9,3461.8,2.5141]
[1754233669951,1.2311,3461.9,3461.8,2.5141]
[1754233671850,0.3612,3461.9,3461.8,2.5141]
[1754233672256,0.5777,3462.1,3462.0,2.0622]
[1754233672446,2.62786594,3462.1,3462.0,2.5141]
[1754233673059,0.81906594,3462.1,3462.0,2.5141]
[1754233673255,1.10003,3462.5,3462.4,0.3035]
[1754233673558,1.75770168,3462.5,3462.4,2.5141]
[1754233673752,1.18007168,3462.5,3462.4,2.5141]
[1754233673960,0.81887168,3462.5,3462.4,2.5141]
[1754233674151,3.78539,3462.7,3462.4,0.9923]
[1754233674354,0.7087,3462.1,3461.9,0.8658]
[1754233674650,1.2311,3462.0,3461.9,1.0996]
[1754233675058,1.2311,3462.0,3461.9,1.6619]
[1754233675458,5.9732887,3462.1,3461.6,1.21]
[1754233675459,1.81516,3461.7,3461.6,1.21]
[1754233675961,1.80886,3461.7,3461.6,2.5141]
[1754233676160,0.57776,3461.7,3461.6,2.5141]
[1754233676356,3.2078,3461.8,3461.6,2.5141]
[1754233676653,3.569,3461.8,3461.7,2.5141]
[1754233676955,1.28646,3461.7,3461.6,0.6477]
[1754233677257,1.80886,3461.7,3461.6,2.5141]
[1754233679362,0.57783,3461.3,3461.2,2.5141]
[1754233680558,1.80893,3461.3,3461.2,2.5141]
[1754233680748,0.5224,3461.6,3461.3,1.5218]
[1754233680947,3.78555,3461.8,3461.6,2.5141]
[1754233681158,3.78555,3461.8,3461.7,2.5141]
[1754233682054,3.2078,3461.8,3461.7,2.5141]
[1754233682457,1.10011,3462.0,3461.8,1.0699]
[1754233682758,0.8836,3461.9,3461.8,1.9518]
[1754233683262,0.8836,3461.9,3461.8,2.5141]
[1754233683958,1.2311,3461.9,3461.8,2.5141]
[1754233685061,1.2311,3461.9,3461.8,2.0065]
[1754233685458,1.2311,3461.9,3461.8,2.5141]
[1754233685963,0.3612,3461.9,3461.8,2.5141]
[1754233686263,5.01654,3462.4,3462.3,2.5141]
[1754233686457,5.83667412,3462.4,3462.3,2.0065]
[1754233686756,0.82013412,3462.4,3462.3,2.0065]
[1754233686960,4.81424905,3462.9,3462.0,3.2078]
[1754233686961,3.569,3462.9,3462.8,0.9923]
[1754233687155,4.02800409,3462.9,3462.8,2.5141]
[1754233687757,1.0,3463.0,3462.9,2.2106]
[1754233687955,1.0,3463.0,3462.9,2.5141]
[1754233688356,3.62859944,3463.0,3462.9,2.5141]
[1754233688963,2.80864,3463.0,3462.9,2.5141]
[1754233689461,2.2311,3463.0,3462.9,2.5141]
[1754233690254,1.80871,3462.6,3462.5,1.21]
[1754233690462,2.33747,3462.2,3462.1,1.21]
[1754233690662,1.28642,3461.9,3461.8,1.6619]
[1754233690869,1.80882,3461.9,3461.8,1.6619]
[1754233693762,1.80882,3461.9,3461.8,1.21]
[1754233694155,1.041,3461.6,3461.5,0.5257]
[1754233694367,1.7205,3461.6,3461.5,0.5257]
[1754233695267,1.2085,3461.6,3461.5,1.6799]
[1754233695667,1.2085,3461.6,3461.5,2.049]
[1754233696871,0.8714,3461.8,3461.7,2.5624]
[1754233697068,1.2085,3461.8,3461.7,2.5624]
[1754233697973,1.2085,3461.8,3461.7,2.049]
[1754233698174,1.7205,3461.8,3461.7,1.6799]
[1754233698366,1.2085,3461.8,3461.7,2.049]
[1754233699972,1.7205,3461.8,3461.7,2.049]
[1754233700270,1.2085,3461.8,3461.7,2.049]
[1754233700472,1.2085,3461.8,3461.7,2.5624]
[1754233701674,1.2085,3461.8,3461.7,2.049]
[1754233701973,1.2085,3461.8,3461.7,2.5624]
[1754233702472,0.57771,3462.0,3461.7,2.5624]
[1754233702677,6.70715683,3462.1,3462.0,1.0558]
[1754233702975,7.23615683,3462.1,3462.0,2.5624]
[1754233706373,7.23615683,3462.1,3462.0,2.049]
[1754233706579,7.74815683,3462.1,3462.0,1.2124]
[1754233707487,7.74815683,3462.1,3462.0,0.5257]
[1754233708680,5.57012001,3462.1,3462.0,1.2124]
[1754233708870,5.57012001,3462.1,3462.0,2.049]
[1754233709078,5.05812001,3462.1,3462.0,2.5624]
[1754233710977,3.84962001,3462.1,3462.0,2.5624]
[1754233711279,5.05812001,3462.1,3462.0,1.6799]
[1754233711479,5.57012001,3462.1,3462.0,1.6799]
[1754233711675,0.57775,3461.8,3461.3,3.2078]
[1754233711878,1.25725,3461.8,3461.7,1.0558]
[1754233712072,1.78625,3461.8,3461.7,2.5624]
[1754233712272,5.05818001,3461.8,3461.7,2.5624]
[1754233714479,4.48043001,3461.8,3461.7,2.5624]
[1754233715276,3.78553,3461.9,3461.7,1.0558]
[1754233715277,3.2078,3461.9,3461.7,1.0558]
[1754233715476,3.78552,3461.9,3461.8,2.5624]
[1754233716184,4.65692,3461.9,3461.8,2.5624]
[1754233716582,4.99402,3461.9,3461.8,2.5624]
[1754233718985,3.8873,3461.9,3461.4,1.0391]
[1754233719183,4.48043001,3461.5,3461.4,2.5624]
[1754233720087,5.05822001,3461.5,3461.4,2.5624]
[1754233722193,4.48043001,3461.5,3461.4,2.5624]
[1754233722787,0.92016,3461.7,3461.6,2.5624]
[1754233722992,1.78626,3461.7,3461.6,2.5624]
[1754233723593,0.7098,3461.0,3460.9,4.3946]
[1754233723785,1.81816,3460.5,3460.4,1.3279]
[1754233723989,1.81816,3460.5,3460.4,0.8747]
[1754233723990,5.58299001,3460.5,3460.4,0.8747]
[1754233724492,5.58299001,3460.5,3460.4,1.1868]
[1754233724887,4.51213001,3460.5,3460.4,2.0024]
[1754233725080,0.57792,3460.8,3460.6,1.5624]
[1754233725287,1.81812,3460.8,3460.7,2.5447]
[1754233725483,1.2402,3460.8,3460.7,2.5447]
[1754233725791,0.8854,3460.8,3460.7,2.5447]
[1754233726396,3.84983001,3460.9,3460.7,2.5447]
[1754233726595,3.80233001,3460.9,3460.8,1.0714]
[1754233726794,4.15733001,3460.9,3460.8,2.5447]
[1754233727289,4.51213001,3460.9,3460.8,2.5447]
[1754233727891,3.27193001,3460.9,3460.8,2.5447]
[1754233728292,3.27193001,3461.2,3460.8,1.598]
[1754233728497,0.8854,3461.1,3461.0,2.5447]
[1754233728693,1.2402,3461.1,3461.0,2.5447]
[1754233728896,1.7331,3461.1,3461.0,2.0024]
[1754233729197,1.7331,3461.1,3461.0,1.64]
[1754233729400,1.81812,3460.7,3460.6,2.0024]
[1754233729617,1.2878,3460.3,3460.2,2.0024]
[1754233729802,0.4929,3460.2,3460.1,0.5291]
[1754233729994,1.28786,3459.9,3459.8,0.6577]
[1754233730299,4.51213001,3459.9,3459.8,2.0024]
[1754233730492,4.51213001,3459.9,3459.8,2.5447]
[1754233731101,1.2402,3459.9,3459.8,2.5447]
[1754233731993,4.51213001,3459.9,3459.8,2.5447]
[1754233733196,0.57807,3459.8,3459.6,3.2078]
[1754233733396,1.2402,3459.7,3459.6,0.6577]
[1754233733602,1.7331,3459.7,3459.6,0.6577]
[1754233733902,1.7331,3459.7,3459.6,1.64]
[1754233734496,1.7331,3459.7,3459.6,2.0024]
[1754233734497,1.2402,3459.7,3459.6,2.0024]
[1754233735099,1.7331,3459.7,3459.6,2.0024]
[1754233735298,1.7331,3459.7,3459.6,1.1868]
[1754233735500,1.7331,3459.7,3459.6,0.8412]
[1754233735900,1.7331,3459.7,3459.6,1.1868]
[1754233736398,1.7331,3459.7,3459.6,1.64]
[1754233736705,3.2078,3459.8,3459.6,2.5447]
[1754233736909,4.448,3459.8,3459.7,2.5447]
[1754233737505,5.02608,3459.8,3459.7,2.5447]
[1754233740510,7.71993001,3459.8,3459.7,2.5447]
[1754233741212,7.72103001,3459.8,3459.7,2.5447]
[1754233742813,3.2078,3459.8,3459.7,2.5447]
[1754233743409,0.57803,3460.1,3459.7,1.59818]
[1754233743715,0.57803,3460.1,3460.0,2.5447]
[1754233744014,0.93303,3460.1,3460.0,2.5447]
[1754233744313,0.57803,3460.1,3460.0,2.5447]
[1754233746114,3.84994001,3460.2,3460.0,2.5447]
[1754233746315,4.20494001,3460.2,3460.1,1.2]
[1754233746612,4.73534001,3460.2,3460.1,2.5447]
[1754233746808,3.2078,3460.3,3460.1,2.5447]
[1754233747007,3.2078,3460.3,3460.2,2.5447]
[1754233747809,3.84990001,3460.5,3460.2,1.0201]
[1754233748008,4.73530001,3460.5,3460.4,1.0201]
[1754233748213,4.73530001,3460.5,3460.4,2.5447]
[1754233749518,4.20490001,3460.5,3460.4,2.5447]
[1754233750511,4.73530001,3460.5,3460.4,2.5447]
[1754233750817,5.09010001,3460.5,3460.4,2.5447]
[1754233752409,3.6914,3460.9,3460.4,2.5447]
[1754233752410,1.28775,3460.6,3460.5,0.8747]
[1754233752607,5.09118001,3460.6,3460.5,2.5447]
[1754233753212,5.57478001,3460.6,3460.5,2.0024]
[1754233753410,5.57478001,3460.6,3460.5,1.64]
[1754233753905,1.4233,3460.3,3460.2,0.6257]
[1754233754104,1.4233,3460.3,3460.0,0.5118]
[1754233754105,1.2011,3460.1,3460.0,1.1119]
[1754233754310,1.6753,3460.1,3460.0,1.1119]
[1754233754507,1.6753,3460.1,3460.0,1.6179]
[1754233754818,1.6753,3460.1,3460.0,1.9639]
[1754233755116,0.7026,3459.8,3459.7,0.506]
[1754233755421,1.6753,3459.8,3459.7,1.1317]
[1754233755813,1.6753,3459.8,3459.7,1.6179]
[1754233756913,1.2011,3459.8,3459.7,2.4757]
[1754233757214,4.0621,3460.1,3460.0,0.6257]
[1754233757411,0.8543,3460.1,3460.0,2.4757]
[1754233757712,0.578,3460.3,3460.0,0.9717]
[1754233757913,3.27193001,3460.1,3460.0,0.9717]
[1754233758411,0.57804,3460.0,3459.5,3.2078]
[1754233758612,1.77914,3460.0,3459.9,0.9717]
[1754233758921,3.27193001,3460.1,3459.9,2.4757]
[1754233759121,3.27193001,3460.1,3459.8,0.57807]
[1754233759122,3.27193001,3460.1,3460.0,2.4757]
[1754233759316,8.15503001,3460.1,3460.0,1.1317]
[1754233759511,0.7026,3459.8,3459.7,1.1317]
[1754233759817,1.2011,3459.6,3459.5,4.1795]
[1754233760219,1.2011,3459.6,3459.5,4.3395]
[1754233760420,1.6753,3459.6,3459.5,1.1317]
[1754233760921,1.2011,3459.6,3459.5,1.9639]
[1754233761317,1.6753,3459.6,3459.5,1.9639]
[1754233761520,1.6753,3459.6,3459.5,1.6179]
[1754233761711,1.2011,3459.6,3459.0,3.2078]
[1754233761916,4.47303001,3459.3,3459.2,2.4757]
[1754233762715,4.12623001,3459.3,3459.2,2.4757]
[1754233765016,3.27193001,3459.3,3459.2,2.4757]
[1754233767023,3.62773001,3459.3,3459.2,2.4757]
[1754233767223,4.12623001,3459.3,3459.2,2.4757]
[1754233768226,4.47303001,3459.3,3459.2,2.4757]
[1754233769225,1.2011,3459.3,3459.2,2.4757]
[1754233769726,0.8543,3459.3,3459.2,2.4757]
[1754233770226,4.12623001,3459.3,3459.2,2.4757]
[1754233771429,2.57197038,3461.7,3459.0,3.786]
[1754233771430,0.8543,3460.0,3459.9,0.9717]
[1754233771727,0.8543,3460.0,3459.9,2.4757]
[1754233772128,3.2078,3460.1,3459.9,2.4757]
[1754233772325,4.64013,3460.1,3460.0,2.4757]
[1754233772526,4.0621,3460.1,3460.0,2.4757]
[1754233772725,3.2078,3460.1,3460.0,2.4757]
[1754233772926,3.84993001,3460.3,3460.0,2.4757]
[1754233773224,1.28056,3460.5,3460.4,2.4757]
[1754233773425,0.7026,3460.5,3460.4,2.4757]
[1754233773623,1.77914,3460.0,3459.9,4.8257]
[1754233773931,2.25341,3459.6,3459.5,1.6179]
[1754233774126,2.25341,3459.6,3459.5,1.9639]
[1754233774428,1.77921,3459.6,3459.5,2.4757]
[1754233774820,2.25341,3459.6,3459.5,1.1317]
[1754233775328,1.28076,3459.3,3459.2,1.4579]
[1754233775525,5.05119001,3459.3,3459.2,2.4757]
[1754233776530,3.97453001,3459.3,3458.9,0.87461]
[1754233776730,0.8543,3459.2,3459.1,2.4757]
[1754233777028,0.8543,3459.2,3458.7,3.2078]
[1754233777029,3.2078,3459.6,3459.5,2.4757]
[1754233777224,4.4089,3459.6,3459.5,2.4757]
[1754233777628,0.3558,3459.6,3459.5,2.4757]
[1754233778025,0.8543,3459.6,3459.5,2.4757]
[1754233778228,0.4985,3459.9,3459.8,0.3293]
[1754233778532,1.2011,3460.1,3460.0,2.4757]
[1754233778729,0.3558,3460.1,3460.0,2.4757]
[1754233778932,0.8543,3460.1,3460.0,2.4757]
[1754233779128,1.2011,3460.1,3460.0,2.4757]
[1754233779427,0.578,3460.3,3460.0,0.9717]
[1754233779630,0.578,3460.3,3460.2,2.4757]
[1754233779631,1.4323,3460.3,3460.2,2.4757]
[1754233779830,1.7791,3460.3,3460.2,2.4757]
[1754233780031,1.3195,3459.8,3459.7,0.506]
[1754233780225,8.15503001,3459.8,3459.7,0.506]
[1754233780826,0.7026,3459.5,3459.4,1.1119]
[1754233781038,1.2011,3459.5,3459.4,1.4579]
[1754233781425,1.2011,3459.5,3459.4,1.9639]
[1754233781923,0.4985,3459.6,3459.4,0.9717]
[1754233782126,0.8543,3459.6,3459.5,2.4757]
[1754233782332,1.2011,3459.6,3459.5,2.4757]
[1754233782529,6.47973001,3459.8,3459.5,2.4757]
[1754233782736,3.7063,3460.3,3459.7,0.9717]
[1754233782930,4.4089,3460.3,3460.2,0.9717]
[1754233783231,7.68083001,3460.3,3460.2,2.4757]
[1754233784629,4.4089,3460.3,3460.2,2.4757]
[1754233786127,4.8648,3460.3,3460.2,0.506]
[1754233786526,4.4089,3460.3,3460.2,1.9641]
[1754233786730,4.4089,3460.3,3460.2,2.4628]
[1754233787132,4.4089,3460.3,3460.2,1.9641]
[1754233787330,1.657,3460.3,3460.2,1.9641]
[1754233787533,4.8648,3460.3,3460.2,1.1558]
[1754233787728,0.57801,3460.2,3459.8,0.4987]
[1754233787930,1.25108,3459.8,3459.5,3.2078]
[1754233788134,0.57811,3459.6,3459.5,3.2078]
[1754233788330,0.673,3459.4,3459.3,0.9998]
[1754233788528,0.673,3459.4,3459.3,2.4363]
[1754233789031,0.673,3459.1,3459.0,4.3371]
[1754233789235,1.1861,3459.1,3459.0,5.1454]
[1754233789537,1.1861,3459.1,3459.0,5.6441]
[1754233791234,1.76421,3459.6,3459.5,0.6498]
[1754233791532,1.76421,3459.6,3459.5,1.9376]
[1754233791732,1.76421,3459.6,3459.5,2.4363]
[1754233792233,1.76421,3459.6,3459.5,1.9376]
[1754233792639,2.22011,3459.6,3459.5,1.9376]